fUSD/lending_fUSD_20240906
["ID","MTS","AMOUNT","RATE_DAILY","PERIOD"]
[337298328,1725587464261,-8.53030576,0.00014588,2]
[337298329,1725587464274,-352.90083197,0.00014588,2]
[337298330,1725587464284,-522.77217774,0.00014588,2]
[337298331,1725587464294,-501.19449836,0.00014588,2]
[337298332,1725587464303,-500.0,0.00014588,2]
[337298333,1725587464313,-500.0,0.00014588,2]
[337298334,1725587464323,-500.0,0.00014588,2]
[337298335,1725587464333,-432.12381511,0.00014588,2]
[337298336,1725587464343,-500.0,0.00014588,2]
[337298337,1725587464353,-500.0,0.00014588,2]
[337298338,1725587464363,-500.0,0.00014588,2]
[337298339,1725587464373,-500.0,0.00014588,2]
[337298340,1725587464382,-500.0,0.00014588,2]
[337298341,1725587464391,-500.0,0.00014588,2]
[337298342,1725587464401,-150.24782682,0.00014588,2]
[337298343,1725587464412,-500.0,0.00014588,2]
[337298344,1725587464423,-603.08402132,0.00014588,2]
[337298345,1725587464433,-562.46299143,0.00014588,2]
[337298346,1725587464442,-500.0,0.00014588,2]
[337298347,1725587464452,-500.0,0.00014588,2]
[337298348,1725587464462,-276.15269228,0.00014588,2]
[337298349,1725587464472,-500.0,0.00014588,2]
[337298350,1725587464482,-500.0,0.00014588,2]
[337298351,1725587464493,-222.66163247,0.00014588,2]
[337298352,1725587464506,-277.33836753,0.00014588,2]
[337298353,1725587464516,-411.25985598,0.00014588,2]
[337298354,1725587464526,-500.0,0.00014588,2]
[337298355,1725587464536,-500.0,0.00014588,2]
[337298356,1725587464546,-500.0,0.00014588,2]
[337298357,1725587464560,-500.0,0.00014588,2]
[337298358,1725587464570,-500.0,0.00014588,2]
[337298359,1725587464580,-500.0,0.00014588,2]
[337298360,1725587464591,-500.0,0.00014588,2]
[337298361,1725587464601,-500.0,0.00014588,2]
[337298362,1725587464611,-500.0,0.00014588,2]
[337298363,1725587464622,-152.64626367,0.00014588,2]
[337298364,1725587464634,-500.0,0.00014588,2]
[337298365,1725587464643,-500.0,0.00014588,2]
[337298366,1725587464653,-500.0,0.00014588,2]
[337298367,1725587464663,-500.0,0.00014588,2]
[337298368,1725587464674,-500.0,0.00014588,2]
[337298369,1725587464684,-500.0,0.00014588,2]
[337298370,1725587464695,-434.62029588,0.00014588,2]
[337298371,1725587464705,-500.0,0.00014588,2]
[337298372,1725587464715,-500.0,0.00014588,2]
[337298373,1725587464725,-500.0,0.00014588,2]
[337298374,1725587464734,-500.0,0.00014588,2]
[337298375,1725587464745,-216.3557726,0.00014588,2]
[337298376,1725587464756,-500.0,0.00014588,2]
[337298377,1725587464766,-500.0,0.00014588,2]
[337298378,1725587464776,-500.0,0.00014588,2]
[337298379,1725587464785,-500.0,0.00014588,2]
[337298380,1725587464795,-500.0,0.00014588,2]
[337298381,1725587464805,-500.0,0.00014588,2]
[337298382,1725587464814,-500.0,0.00014588,2]
[337298383,1725587464824,-500.0,0.00014588,2]
[337298384,1725587464834,-604.25281665,0.00014588,2]
[337298385,1725587464844,-501.17461445,0.00014588,2]
[337298386,1725587464853,-500.0,0.00014588,2]
[337298387,1725587464863,-500.0,0.00014588,2]
[337298388,1725587464872,-500.0,0.00014588,2]
[337298389,1725587464882,-500.0,0.00014588,2]
[337298390,1725587464891,-500.0,0.00014588,2]
[337298391,1725587464901,-500.0,0.00014588,2]
[337298392,1725587464910,-500.0,0.00014588,2]
[337298393,1725587464919,-500.0,0.00014588,2]
[337298394,1725587464929,-500.0,0.00014588,2]
[337298395,1725587464939,-500.0,0.00014588,2]
[337298396,1725587464948,-500.0,0.00014588,2]
[337298397,1725587464957,-500.0,0.00014588,2]
[337298398,1725587464967,-500.0,0.00014588,2]
[337298399,1725587464976,-500.0,0.00014588,2]
[337298400,1725587464985,-500.0,0.00014588,2]
[337298401,1725587464996,-500.0,0.00014588,2]
[337298402,1725587465006,-500.0,0.00014588,2]
[337298403,1725587465016,-500.0,0.00014588,2]
[337298404,1725587465026,-500.0,0.00014588,2]
[337298405,1725587465035,-500.0,0.00014588,2]
[337298406,1725587465044,-500.0,0.00014588,2]
[337298407,1725587465054,-500.0,0.00014588,2]
[337298408,1725587465064,-500.0,0.00014588,2]
[337298409,1725587465074,-500.0,0.00014588,2]
[337298410,1725587465084,-500.0,0.00014588,2]
[337298411,1725587465094,-500.0,0.00014588,2]
[337298412,1725587465103,-500.0,0.00014588,2]
[337298413,1725587465113,-500.0,0.00014588,2]
[337298414,1725587465123,-500.0,0.00014588,2]
[337298415,1725587465132,-173.51742225,0.00014588,2]
[337298416,1725587465142,-325.42827393,0.00014588,2]
[337298417,1725587465152,-500.0,0.00014588,2]
[337298418,1725587465162,-500.0,0.00014588,2]
[337298419,1725587465172,-502.00975372,0.00014588,2]
[337298420,1725587465182,-500.0,0.00014588,2]
[337298421,1725587465191,-500.0,0.00014588,2]
[337298422,1725587465200,-500.0,0.00014588,2]
[337298423,1725587465210,-500.0,0.00014588,2]
[337298424,1725587465219,-501.25992005,0.00014588,2]
[337298425,1725587465228,-503.61744098,0.00014588,2]
[337298426,1725587465239,-501.02013604,0.00014588,2]
[337298427,1725587465257,-500.0,0.00014588,2]
[337298428,1725587465267,-500.0,0.00014588,2]
[337298429,1725587465277,-500.0,0.00014588,2]
[337298430,1725587465287,-500.0,0.00014588,2]
[337298431,1725587465297,-500.0,0.00014588,2]
[337298432,1725587465307,-500.0,0.00014588,2]
[337298433,1725587465316,-500.0,0.00014588,2]
[337298434,1725587465326,-500.0,0.00014588,2]
[337298435,1725587465335,-501.49206777,0.00014588,2]
[337298436,1725587465345,-501.91473719,0.00014588,2]
[337298437,1725587465354,-500.0,0.00014588,2]
[337298438,1725587465364,-500.0,0.00014588,2]
[337298439,1725587465374,-629.54441147,0.00014588,2]
[337298440,1725587465383,-500.0,0.00014588,2]
[337298441,1725587465393,-500.0,0.00014588,2]
[337298442,1725587465403,-279.97507947,0.00014588,2]
[337298443,1725587465413,-500.0,0.00014588,2]
[337298444,1725587465422,-500.0,0.00014588,2]
[337298445,1725587465432,-500.0,0.00014588,2]
[337298446,1725587465442,-500.0,0.00014588,2]
[337298447,1725587465452,-505.27450374,0.00014588,2]
[337298448,1725587465462,-500.0,0.00014588,2]
[337298449,1725587465473,-500.0,0.00014588,2]
[337298450,1725587465482,-500.0,0.00014588,2]
[337298451,1725587465496,-500.0,0.00014588,2]
[337298452,1725587465506,-500.0,0.00014588,2]
[337298453,1725587465629,-539.20548875,0.00014588,2]
[337298454,1725587465663,-500.0,0.00014588,2]
[337298455,1725587465672,-500.0,0.00014588,2]
[337298456,1725587465683,-500.0,0.00014588,2]
[337298457,1725587465692,-500.0,0.00014588,2]
[337298458,1725587465702,-327.06902251,0.00014588,2]
[337298459,1725587465712,-502.27835238,0.00014588,2]
[337298460,1725587465722,-500.0,0.00014588,2]
[337298461,1725587465732,-388.0330692,0.00014588,2]
[337298462,1725587465744,-502.87757225,0.00014588,2]
[337298463,1725587465754,-500.0,0.00014588,2]
[337298464,1725587465764,-500.0,0.00014588,2]
[337298465,1725587465774,-500.0,0.00014588,2]
[337298466,1725587465784,-501.81668154,0.00014588,2]
[337298467,1725587465795,-502.48084929,0.00014588,2]
[337298468,1725587465805,-500.0,0.00014588,2]
[337298469,1725587465815,-500.0,0.00014588,2]
[337298470,1725587465824,-501.2150847,0.00014588,2]
[337298471,1725587465834,-602.45660975,0.00014588,2]
[337298472,1725587465845,-311.75807796,0.00014588,2]
[337298473,1725587465855,-500.0,0.00014588,2]
[337298474,1725587465865,-500.0,0.00014588,2]
[337298475,1725587465875,-500.0,0.00014588,2]
[337298476,1725587465886,-218.70945175,0.00014588,2]
[337298477,1725587465896,-504.09379021,0.00014588,2]
[337298478,1725587465906,-500.0,0.00014588,2]
[337298479,1725587465916,-500.0,0.00014588,2]
[337298480,1725587465926,-500.0,0.00014588,2]
[337298481,1725587465936,-500.0,0.00014588,2]
[337298482,1725587465946,-500.0,0.00014588,2]
[337298483,1725587465955,-500.0,0.00014588,2]
[337298484,1725587465965,-500.0,0.00014588,2]
[337298485,1725587465974,-500.0,0.00014588,2]
[337298486,1725587465984,-500.0,0.00014588,2]
[337298487,1725587465994,-500.0,0.00014588,2]
[337298488,1725587466003,-502.09615637,0.00014588,2]
[337298489,1725587466013,-500.0,0.00014588,2]
[337298490,1725587466022,-500.0,0.00014588,2]
[337298491,1725587466032,-500.0,0.00014588,2]
[337298492,1725587466041,-500.0,0.00014588,2]
[337298493,1725587466051,-500.0,0.00014588,2]
[337298494,1725587466060,-362.73762196,0.00014588,2]
[337298495,1725587466069,-500.0,0.00014588,2]
[337298496,1725587466079,-159.30423892,0.00014588,2]
[337298497,1725587466090,-500.0,0.00014588,2]
[337298498,1725587466100,-500.0,0.00014588,2]
[337298499,1725587466111,-500.0,0.00014588,2]
[337298500,1725587466121,-500.0,0.00014588,2]
[337298501,1725587466133,-512.28431274,0.00014588,2]
[337298502,1725587466143,-500.0,0.00014588,2]
[337298503,1725587466152,-500.0,0.00014588,2]
[337298504,1725587466162,-500.0,0.00014588,2]
[337298505,1725587466173,-500.0,0.00014588,2]
[337298506,1725587466183,-500.0,0.00014589,2]
[337298507,1725587466193,-500.0,0.00014589,2]
[337298508,1725587466204,-500.0,0.00014589,2]
[337298509,1725587466215,-500.0,0.00014589,2]
[337298510,1725587466224,-9890.8285676,0.00014593,2]
[337298511,1725587466236,-5842.9007605,0.00014593,2]
[337298512,1725587466246,-4303.0929531,0.00014593,2]
[337298513,1725587466256,-1554.935,0.00014596,2]
[337298514,1725587466265,-448.591,0.00014596,2]
[337298515,1725587466275,-624.177,0.00014596,2]
[337298516,1725587466285,-1263.719,0.00014596,2]
[337298517,1725587466296,-813.356,0.00014596,2]
[337298518,1725587466305,-936.122,0.00014596,2]
[337298519,1725587466316,-560.702,0.00014596,2]
[337298520,1725587466327,-273.13,0.00014596,2]
[337298521,1725587466336,-555.652,0.00014596,2]
[337298522,1725587466347,-1904.394,0.00014596,2]
[337298523,1725587466358,-3350.458,0.00014596,2]
[337298524,1725587466369,-1921.0,0.00014596,2]
[337298525,1725587466380,-290.109,0.00014596,2]
[337298526,1725587466391,-1148.255,0.00014596,2]
[337298527,1725587466401,-13549.575,0.00014596,2]
[337298528,1725587466411,-5891.429,0.00014596,2]
[337298529,1725587466422,-1085.269,0.00014596,2]
[337298530,1725587466432,-522.65793337,0.00014596,2]
[337298531,1725587466443,-595.26918065,0.00014596,2]
[337298532,1725587466454,-500.0,0.00014596,2]
[337298533,1725587466463,-500.0,0.00014596,2]
[337298534,1725587466472,-500.0,0.00014596,2]
[337298535,1725587466483,-500.0,0.00014596,2]
[337298536,1725587466493,-467.78455391,0.00014596,2]
[337298537,1725587466502,-641.76,0.00014596,2]
[337298538,1725587466511,-579.27922935,0.00014596,2]
[337298539,1725587466522,-500.0,0.00014596,2]
[337298540,1725587466531,-518.43054738,0.00014596,2]
[337298541,1725587466542,-500.0,0.00014596,2]
[337298542,1725587466557,-500.0,0.00014596,2]
[337298543,1725587466568,-549.5232917,0.00014597,2]
[337298544,1725587466578,-500.0,0.00014597,2]
[337298545,1725587466590,-500.0,0.00014597,2]
[337298546,1725587466601,-500.0,0.00014597,2]
[337298547,1725587466613,-500.0,0.00014597,2]
[337298548,1725587466623,-500.0,0.00014597,2]
[337298549,1725587466633,-500.0,0.00014597,2]
[337298550,1725587466643,-500.0,0.00014597,2]
[337298551,1725587466654,-500.0,0.00014597,2]
[337298552,1725587466664,-500.0,0.00014597,2]
[337298553,1725587466674,-500.0,0.00014597,2]
[337298554,1725587466684,-500.0,0.00014597,2]
[337298555,1725587466693,-500.0,0.00014597,2]
[337298556,1725587466703,-500.0,0.00014597,2]
[337298557,1725587466712,-500.0,0.00014597,2]
[337298558,1725587466722,-500.0,0.00014597,2]
[337298559,1725587466731,-500.0,0.00014597,2]
[337298560,1725587466744,-500.0,0.00014597,2]
[337298561,1725587466754,-500.0,0.00014597,2]
[337298562,1725587466763,-500.0,0.00014597,2]
[337298563,1725587466772,-500.0,0.00014597,2]
[337298564,1725587466782,-500.0,0.00014597,2]
[337298565,1725587466792,-500.0,0.00014597,2]
[337298566,1725587466802,-500.0,0.00014597,2]
[337298567,1725587466811,-500.0,0.00014597,2]
[337298568,1725587466821,-500.0,0.00014597,2]
[337298569,1725587466831,-500.0,0.00014597,2]
[337298570,1725587466840,-500.0,0.00014597,2]
[337298571,1725587466850,-500.0,0.00014597,2]
[337298572,1725587466860,-501.35770439,0.00014597,2]
[337298573,1725587466870,-500.0,0.00014597,2]
[337298574,1725587466879,-953.5,0.00014597,2]
[337298575,1725587466889,-500.0,0.00014597,2]
[337298576,1725587466898,-500.0,0.00014597,2]
[337298577,1725587466908,-592.62,0.00014597,2]
[337298578,1725587466917,-500.0,0.00014597,2]
[337298579,1725587466928,-579.8,0.00014597,2]
[337298580,1725587466938,-500.0,0.00014597,2]
[337298581,1725587466947,-500.0,0.00014597,2]
[337298582,1725587466957,-500.0,0.00014597,2]
[337298583,1725587466966,-500.0,0.00014597,2]
[337298584,1725587466975,-500.0,0.00014597,2]
[337298585,1725587466985,-500.0,0.00014597,2]
[337298586,1725587466997,-400.73421712,0.00014597,2]
[337298587,1725587467006,-500.0,0.00014597,2]
[337298588,1725587467016,-500.0,0.00014597,2]
[337298589,1725587467025,-500.0,0.00014597,2]
[337298590,1725587467035,-500.0,0.00014597,2]
[337298591,1725587467043,-500.0,0.00014597,2]
[337298592,1725587467052,-500.0,0.00014597,2]
[337298593,1725587467062,-500.0,0.00014597,2]
[337298594,1725587467071,-500.0,0.00014597,2]
[337298595,1725587467080,-500.0,0.00014597,2]
[337298596,1725587467089,-500.0,0.00014597,2]
[337298597,1725587467098,-500.0,0.00014597,2]
[337298598,1725587467107,-500.0,0.00014597,2]
[337298599,1725587467116,-500.0,0.00014597,2]
[337298600,1725587467126,-500.0,0.00014597,2]
[337298601,1725587467135,-500.0,0.00014597,2]
[337298602,1725587467144,-500.0,0.00014597,2]
[337298603,1725587467153,-500.0,0.00014597,2]
[337298604,1725587467163,-500.0,0.00014597,2]
[337298605,1725587467173,-500.0,0.00014597,2]
[337298606,1725587467183,-500.0,0.00014597,2]
[337298607,1725587467193,-500.0,0.00014597,2]
[337298608,1725587467204,-500.0,0.00014597,2]
[337298609,1725587467214,-500.0,0.00014597,2]
[337298610,1725587467225,-500.0,0.00014597,2]
[337298611,1725587467236,-500.0,0.00014597,2]
[337298612,1725587467247,-500.0,0.00014597,2]
[337298613,1725587467256,-500.0,0.00014597,2]
[337298614,1725587467266,-500.0,0.00014597,2]
[337298615,1725587467275,-564.29,0.00014597,2]
[337298616,1725587467284,-500.0,0.00014597,2]
[337298617,1725587467293,-500.0,0.00014597,2]
[337298618,1725587467303,-500.0,0.00014597,2]
[337298619,1725587467312,-500.0,0.00014597,2]
[337298620,1725587467322,-500.0,0.00014597,2]
[337298621,1725587467333,-500.0,0.00014597,2]
[337298622,1725587467342,-500.0,0.00014597,2]
[337298623,1725587467352,-503.06006056,0.00014597,2]
[337298624,1725587467362,-500.0,0.00014597,2]
[337298625,1725587467373,-520.18073449,0.00014597,2]
[337298626,1725587467384,-517.00820244,0.00014597,2]
[337298627,1725587467394,-500.0,0.00014597,2]
[337298628,1725587467405,-500.0,0.00014597,2]
[337298629,1725587467415,-500.0,0.00014597,2]
[337298630,1725587467424,-642.05934541,0.00014597,2]
[337298631,1725587467434,-503.05689771,0.00014597,2]
[337298632,1725587467445,-549.11111187,0.00014597,2]
[337298633,1725587467454,-500.0,0.00014597,2]
[337298634,1725587467465,-500.0,0.00014597,2]
[337298635,1725587467475,-325.79927229,0.00014597,2]
[337298636,1725587467486,-529.26103016,0.00014597,2]
[337298637,1725587467496,-503.81234011,0.00014597,2]
[337298638,1725587467505,-500.0,0.00014597,2]
[337298639,1725587467515,-501.64402041,0.00014597,2]
[337298640,1725587467525,-500.0,0.00014597,2]
[337298641,1725587467534,-599.67,0.00014597,2]
[337298642,1725587467547,-500.0,0.00014597,2]
[337298643,1725587467559,-500.0,0.00014597,2]
[337298644,1725587467569,-505.18033414,0.00014597,2]
[337298645,1725587467578,-500.7494315,0.00014597,2]
[337298646,1725587467588,-500.0,0.00014597,2]
[337298647,1725587467598,-500.0,0.00014597,2]
[337298648,1725587467609,-500.0,0.00014597,2]
[337298649,1725587467618,-500.0,0.00014597,2]
[337298650,1725587467630,-198.80609829,0.00014597,2]
[337298651,1725587467642,-500.0,0.00014597,2]
[337298652,1725587467653,-500.0,0.00014597,2]
[337298653,1725587467662,-500.0,0.00014597,2]
[337298654,1725587467672,-500.0,0.00014597,2]
[337298655,1725587467682,-533.17273879,0.00014597,2]
[337298656,1725587467694,-500.0,0.00014597,2]
[337298657,1725587467703,-500.0,0.00014597,2]
[337298658,1725587467712,-500.0,0.00014597,2]
[337298659,1725587467721,-500.0,0.00014597,2]
[337298660,1725587467732,-500.0,0.00014597,2]
[337298661,1725587467742,-500.0,0.00014597,2]
[337298662,1725587467751,-500.0,0.00014597,2]
[337298663,1725587467761,-500.0,0.00014597,2]
[337298664,1725587467770,-683.7,0.00014597,2]
[337298665,1725587467779,-500.0,0.00014597,2]
[337298666,1725587467788,-500.0,0.00014597,2]
[337298667,1725587467798,-503.83156966,0.00014598,2]
[337298668,1725587467807,-500.0,0.00014598,2]
[337298669,1725587467816,-500.0,0.00014598,2]
[337298670,1725587467825,-500.0,0.00014598,2]
[337298671,1725587467835,-153.64054087,0.00014598,2]
[337298672,1725587467844,-150.9186832,0.00014598,2]
[337298673,1725587467853,-500.0,0.00014598,2]
[337298674,1725587467862,-500.0,0.00014598,2]
[337298675,1725587467871,-500.0,0.00014598,2]
[337298676,1725587467880,-500.0,0.00014598,2]
[337298677,1725587467890,-500.0,0.00014598,2]
[337298678,1725587467899,-500.0,0.00014598,2]
[337298679,1725587467908,-500.0,0.00014598,2]
[337298680,1725587467918,-500.0,0.00014598,2]
[337298681,1725587467928,-248.20082131,0.00014598,2]
[337298682,1725587467938,-500.0,0.00014598,2]
[337298683,1725587467949,-500.94137255,0.00014598,2]
[337298684,1725587467959,-500.37496066,0.00014598,2]
[337298685,1725587467967,-500.43235152,0.00014598,2]
[337298686,1725587467977,-500.76580159,0.00014598,2]
[337298687,1725587467986,-500.72456144,0.00014598,2]
[337298688,1725587467996,-500.38068275,0.00014598,2]
[337298689,1725587468005,-500.60189864,0.00014598,2]
[337298690,1725587468014,-501.12808985,0.00014598,2]
[337298691,1725587468025,-501.15158674,0.00014598,2]
[337298692,1725587468034,-500.3878647,0.00014598,2]
[337298693,1725587468043,-500.85534251,0.00014598,2]
[337298694,1725587468053,-500.41387691,0.00014598,2]
[337298695,1725587468063,-500.40637812,0.00014598,2]
[337298696,1725587468073,-500.76741216,0.00014598,2]
[337298697,1725587468082,-500.41540761,0.00014598,2]
[337298698,1725587468092,-500.96268797,0.00014598,2]
[337298699,1725587468101,-501.21189451,0.00014598,2]
[337298700,1725587468112,-500.59706747,0.00014598,2]
[337298701,1725587468122,-500.83704094,0.00014598,2]
[337298702,1725587468131,-500.75078989,0.00014598,2]
[337298703,1725587468139,-301.20512351,0.00014598,2]
[337298704,1725587468149,-500.44888563,0.00014598,2]
[337298705,1725587468158,-501.16170729,0.00014598,2]
[337298706,1725587468167,-501.16772811,0.00014598,2]
[337298707,1725587468178,-501.02649531,0.00014598,2]
[337298708,1725587468187,-500.96526268,0.00014598,2]
[337298709,1725587468197,-500.79387226,0.00014598,2]
[337298710,1725587468206,-500.80134521,0.00014598,2]
[337298711,1725587468215,-501.14515674,0.00014598,2]
[337298712,1725587468224,-500.0,0.00014598,2]
[337298713,1725587468234,-500.0,0.00014598,2]
[337298714,1725587468244,-500.0,0.00014598,2]
[337298715,1725587468253,-500.0,0.00014598,2]
[337298716,1725587468262,-582.87639969,0.00014598,2]
[337298717,1725587468271,-500.74256999,0.00014598,2]
[337298718,1725587468281,-501.12559647,0.00014598,2]
[337298719,1725587468291,-500.75926623,0.00014598,2]
[337298720,1725587468300,-500.0,0.00014598,2]
[337298721,1725587468311,-500.75276996,0.00014598,2]
[337298722,1725587468321,-500.0,0.00014598,2]
[337298723,1725587468330,-501.18552687,0.00014598,2]
[337298724,1725587468339,-501.16313622,0.00014598,2]
[337298725,1725587468348,-500.0,0.00014598,2]
[337298726,1725587468358,-500.0,0.00014598,2]
[337298727,1725587468367,-500.0,0.00014598,2]
[337298728,1725587468378,-500.0,0.00014598,2]
[337298729,1725587468387,-500.0,0.00014598,2]
[337298730,1725587468397,-500.0,0.00014598,2]
[337298731,1725587468406,-439.50750286,0.00014598,2]
[337298732,1725587468415,-500.0,0.00014598,2]
[337298733,1725587468425,-157.55390297,0.00014598,2]
[337298734,1725587468435,-500.0,0.00014598,2]
[337298735,1725587468445,-500.0,0.00014598,2]
[337298736,1725587468454,-500.0,0.00014598,2]
[337298737,1725587468463,-500.0,0.00014598,2]
[337298738,1725587468473,-500.0,0.00014598,2]
[337298739,1725587468482,-500.0,0.00014598,2]
[337298740,1725587468493,-500.0,0.00014598,2]
[337298741,1725587468511,-500.0,0.00014598,2]
[337298742,1725587468521,-500.0,0.00014598,2]
[337298743,1725587468530,-500.0,0.00014598,2]
[337298744,1725587468540,-500.0,0.00014598,2]
[337298745,1725587468551,-500.0,0.00014598,2]
[337298746,1725587468561,-500.0,0.00014598,2]
[337298747,1725587468570,-500.0,0.00014598,2]
[337298748,1725587468579,-500.0,0.00014598,2]
[337298749,1725587468590,-500.0,0.00014598,2]
[337298750,1725587468600,-500.0,0.00014598,2]
[337298751,1725587468610,-500.0,0.00014598,2]
[337298752,1725587468620,-500.0,0.00014598,2]
[337298753,1725587468630,-225.90825055,0.00014598,2]
[337298754,1725587468640,-500.0,0.00014598,2]
[337298755,1725587468650,-500.0,0.00014598,2]
[337298756,1725587468660,-500.0,0.00014598,2]
[337298757,1725587468670,-595.61773101,0.00014598,2]
[337298758,1725587468680,-500.0,0.00014598,2]
[337298759,1725587468689,-500.0,0.00014598,2]
[337298760,1725587468699,-500.0,0.00014598,2]
[337298761,1725587468708,-500.0,0.00014598,2]
[337298762,1725587468717,-500.0,0.00014598,2]
[337298763,1725587468727,-500.0,0.00014598,2]
[337298764,1725587468736,-500.0,0.00014598,2]
[337298765,1725587468750,-500.0,0.00014598,2]
[337298766,1725587468760,-500.0,0.00014598,2]
[337298767,1725587468770,-500.0,0.00014598,2]
[337298768,1725587468779,-500.0,0.00014598,2]
[337298769,1725587468789,-172.26698239,0.00014598,2]
[337298770,1725587468799,-500.0,0.00014598,2]
[337298771,1725587468808,-500.0,0.00014598,2]
[337298772,1725587468818,-500.0,0.00014598,2]
[337298773,1725587468828,-500.0,0.00014598,2]
[337298774,1725587468837,-500.0,0.00014598,2]
[337298775,1725587468846,-500.0,0.00014598,2]
[337298776,1725587468856,-500.0,0.00014598,2]
[337298777,1725587468865,-500.0,0.00014598,2]
[337298778,1725587468874,-500.0,0.00014598,2]
[337298779,1725587468884,-500.0,0.00014598,2]
[337298780,1725587468894,-500.0,0.00014598,2]
[337298781,1725587468904,-500.0,0.00014598,2]
[337298782,1725587468914,-500.0,0.00014598,2]
[337298783,1725587468923,-500.0,0.00014598,2]
[337298784,1725587468932,-500.0,0.00014598,2]
[337298785,1725587468942,-500.0,0.00014598,2]
[337298786,1725587468951,-313.16242229,0.00014598,2]
[337298787,1725587468961,-500.0,0.00014598,2]
[337298788,1725587468970,-266.7506188,0.00014598,2]
[337298789,1725587468979,-577.10450877,0.00014598,2]
[337298790,1725587468988,-500.0,0.00014598,2]
[337298791,1725587468998,-500.0,0.00014598,2]
[337298792,1725587469008,-500.0,0.00014598,2]
[337298793,1725587469017,-500.0,0.00014598,2]
[337298794,1725587469027,-546.07242182,0.00014598,2]
[337298795,1725587469036,-500.0,0.00014598,2]
[337298796,1725587469045,-500.0,0.00014598,2]
[337298797,1725587469054,-500.0,0.00014598,2]
[337298798,1725587469064,-500.0,0.00014598,2]
[337298799,1725587469073,-500.0,0.00014598,2]
[337298800,1725587469083,-500.0,0.00014598,2]
[337298801,1725587469092,-500.0,0.00014598,2]
[337298802,1725587469101,-500.00287839,0.00014598,2]
[337298803,1725587469110,-500.0,0.00014598,2]
[337298804,1725587469119,-500.0,0.00014598,2]
[337298805,1725587469128,-500.0,0.00014598,2]
[337298806,1725587469137,-500.0,0.00014598,2]
[337298807,1725587469146,-500.0,0.00014598,2]
[337298808,1725587469155,-500.0,0.00014598,2]
[337298809,1725587469165,-500.0,0.00014598,2]
[337298810,1725587469174,-500.0,0.00014598,2]
[337298811,1725587469183,-449.86375533,0.00014598,2]
[337298812,1725587469192,-500.0,0.00014598,2]
[337298813,1725587469201,-500.0,0.00014598,2]
[337298814,1725587469210,-500.0,0.00014598,2]
[337298815,1725587469220,-500.0,0.00014598,2]
[337298816,1725587469229,-500.0,0.00014598,2]
[337298817,1725587469238,-500.0,0.00014598,2]
[337298818,1725587469247,-500.0,0.00014598,2]
[337298819,1725587469256,-500.0,0.00014598,2]
[337298820,1725587469265,-477.13282652,0.00014598,2]
[337298821,1725587469274,-500.0,0.00014598,2]
[337298822,1725587469284,-500.0,0.00014598,2]
[337298823,1725587469293,-500.0,0.00014598,2]
[337298824,1725587469302,-500.0,0.00014598,2]
[337298825,1725587469311,-500.0,0.00014598,2]
[337298826,1725587469320,-500.0,0.00014598,2]
[337298827,1725587469330,-500.0,0.00014598,2]